Cogmind - Beta 11 @@@ ROGUE MODE // 2022.04.04 @ 08:12:58 Player: maxwell Result: Destroyed by Y-72 Warden with Railgun Performance ------------- Evolutions (6) 3000 Regions Visited (14) 2800 Robots Destroyed (275) 1375 Value Destroyed (10757) 10757 Prototype IDs (9) 180 Alien Tech Used (0) 0 Bonus (3539) 3539 TOTAL SCORE: 21651 Bonus ------- High Alert Combat Kills 2341 Follower Combat Kills 2522 A7 Reached Mainframe 300 Friendly Fire -1624 Cogmind --------- Core Integrity 0/1150 Matter 17/300 Energy 100/100 System Corruption 4% Temperature Cool (9) Movement Core (50) Location -4/Armory Parts ------- > --- POWER (2) -------- (None) > --- PROPULSION (7) --- (None) > --- UTILITY (6) ------ (None) > --- WEAPON (4) ------- (None) > --- INVENTORY (5) ---- Quantum Reactor Improved Coolant Injector Advanced Terrain Scanner EM Disruption Field Advanced Variable Charge Gun Peak State ------------ > --- POWER ------------ Quantum Reactor Quantum Reactor > --- PROPULSION ------- Improved Treads Improved Treads Medium Treads Centrium Heavy Treads Centrium Heavy Treads > --- UTILITY ---------- Improved Coolant Injector Huge Storage Unit Centrium Medium Armor Plating Graphene Brace Improved Force Field Hacking Suite > --- WEAPON ----------- Quantum Rifle Railgun Advanced KE Penetrator Advanced KE Penetrator > --- INVENTORY -------- Medium Treads Improved Medium Treads Improved Coolant Injector Improved Coolant Injector Advanced Terrain Scanner Improved Terrain Scan Processor Improved Transmission Jammer Graphene Brace Improved Shock Absorption System EM Disruption Field Improved Shield Generator Advanced Variable Charge Gun Long-range Proton Cannon Guided EMP Blaster Scatter Rocket Array [Rating: 134] Favorites ----------- Power Neutrino Core Engine Ion Engine Power Core Neutrino Core Reactor Quantum Reactor Propulsion Light Treads Treads Light Treads Leg Flexi-carbon Leg Wheel Armored Huge Wheel Utility Advanced Targeting Computer Device Graphene Brace Storage Huge Storage Unit Processor Advanced Targeting Computer Hackware Hacking Suite Protection Hardened Light Armor Plating Weapon Gauss Rifle Energy Gun Quantum Rifle Energy Cannon Long-range Proton Cannon Ballistic Gun Gauss Rifle Ballistic Cannon Heavy Assault Cannon Launcher Guided EMP Blaster Impact Weapon Powered Hammer Slashing Weapon Mining Claw Build | -11 -10 -9 -8 -7 -6 -6 -6 -5 -5 -5 -5 -5 -4 -4 ------- Run | Scr Mat Mat Mat Fac Fac Was Fac Fac Ext Cet Arc Hub Fac Arm Slots Evolved 12 | . . 2 2 2 2 . . 2 . . . . 2 . Power 1 | . . . . . . . . . . . . . 1 . Propulsion 5 | . . 1 . 1 1 . . 1 . . . . 1 . Utility 4 | . . . 1 1 1 . . 1 . . . . . . Weapon 2 | . . 1 1 . . . . . . . . . . . Parts Attached 249 | 6 9 18 17 32 5 10 28 19 45 14 8 22 16 . Power 15 | 1 . 1 2 1 . 1 2 1 1 2 . 2 1 . Engine 5 | 1 . 1 2 1 . . . . . . . . . . Core 4 | . . . . . . . 2 1 1 . . . . . Reactor 6 | . . . . . . 1 . . . 2 . 2 1 . Propulsion 70 | 2 . 5 3 12 . 3 7 8 19 4 . 3 4 . Treads 51 | 2 . 5 3 11 . 3 1 4 12 4 . 3 3 . Leg 18 | . . . . . . . 6 4 7 . . . 1 . Wheel 1 | . . . . 1 . . . . . . . . . . Hover . | . . . . . . . . . . . . . . . Flight . | . . . . . . . . . . . . . . . Utility 56 | 1 4 . 5 7 3 . 7 3 8 2 5 8 3 . Device 32 | . . . 2 5 2 . 3 2 6 . 5 5 2 . Storage 6 | 1 3 . . . . . 1 . . 1 . . . . Processor 6 | . . . 2 1 1 . 1 . . . . . 1 . Hackware 6 | . . . . . . . 2 1 2 . . 1 . . Protection 6 | . 1 . 1 1 . . . . . 1 . 2 . . Artifact . | . . . . . . . . . . . . . . . Weapon 108 | 2 5 12 7 12 2 6 12 7 17 6 3 9 8 . Energy Gun 10 | . . . . . . . 1 . . 1 1 3 4 . Energy Cannon 10 | . . . . . . . . . 5 1 1 2 1 . Ballistic Gun 63 | 2 2 9 6 11 2 5 3 4 11 2 1 4 1 . Ballistic Cannon 5 | . . . . . . . 4 1 . . . . . . Launcher 13 | . 1 . 1 1 . 1 3 1 1 2 . . 2 . Special Weapon . | . . . . . . . . . . . . . . . Impact Weapon 2 | . . . . . . . 1 1 . . . . . . Slashing Weapon 5 | . 2 3 . . . . . . . . . . . . Piercing Weapon . | . . . . . . . . . . . . . . . Special Melee Weapon . | . . . . . . . . . . . . . . . Unidentified Prototypes 7 | . . . 1 . . . 1 . . 3 . 1 1 . Corrupted Parts 17 | . . . . . . . 2 . 4 6 . 4 1 . System Corruption 93 | . . . . . . . 4 . 16 49 . 22 2 . Parts Lost 83 | . . 3 2 18 . . 9 7 18 2 . 8 13 3 Power 7 | . . 1 1 . . . 1 . 1 1 . . 2 . Propulsion 30 | . . 1 . 10 . . 2 2 9 . . 2 4 . Utility 15 | . . . 1 4 . . 4 1 1 . . 1 2 1 Weapon 31 | . . 1 . 4 . . 2 4 7 1 . 5 5 2 Highest Loss Streak 9 | . . 1 1 9 . . 4 2 6 2 . 5 6 3 To Critical Strikes 1 | . . . . . . . . . . 1 . . . . Average Slot Usage (%) 89 | . 99 98 99 97 78 84 80 84 95 73 69 76 78 35 Engine 4 | . 14 11 8 7 6 5 . . . . . . . . Core 1 | . . . . . . . 1 5 5 . . . . . Reactor 1 | . . . . . . . 4 . . 4 5 5 7 . Treads 20 | . 28 31 27 29 6 15 16 11 9 25 23 19 22 6 Leg 5 | . . . . . . . 5 15 23 . . . 1 3 Device 7 | . . . 7 13 13 13 9 10 8 1 4 12 9 3 Storage 7 | . 22 11 9 7 6 6 6 5 5 5 5 5 5 3 Processor 6 | . . . 10 5 12 13 12 11 11 2 . . 3 3 Hackware 2 | . . . . . . . 2 4 6 6 . 3 5 3 Protection 2 | . 5 11 . 1 . . . . . 3 5 4 4 . Energy Cannon 1 | . . . . . . . . . 7 5 1 2 . . Ballistic Gun 20 | . 24 30 35 28 24 25 15 9 13 9 16 13 11 6 Naked Turns 66 | . . . . . . . . . . . . . . 66 Heaviest Build 175 | 12 54 59 63 79 72 73 119 119 128 175 172 173 166 105 Greatest Support 234 | 40 40 60 60 80 28 160 160 163 145 206 206 211 234 58 Greatest Overweight (x) 5 | . 1 1 1 2 2 2 5 1 3 1 . . 1 1 Average Overweight (x) . | . . . . . 2 . . . . . . . . . Largest Inventory Capacity 25 | 8 20 20 20 20 20 20 25 25 25 25 25 25 25 25 Average Capacity 22 | 7 17 20 20 20 20 20 24 25 25 25 25 25 25 17 Most Carried 25 | 1 17 20 20 20 18 20 25 25 25 25 25 25 24 25 Average Carried 19 | . 11 18 18 16 15 18 23 21 21 24 24 23 16 16 Final Capacity 25 | 8 20 20 20 20 20 20 25 25 25 25 25 25 25 5 Final Carried 25 | 1 17 20 20 19 15 20 25 24 25 25 25 18 24 5 Class Distribution -------------------- 38% | Scavenger-Gunner 20% | Scavenger-Tank 12% | Mutant 11% | Scavenger-Mutant 7% | Scavenger-Skirmisher 3% | Tank Dominant Class ---------------- Mutant | -10/Materials Scavenger-Tank | -9/Materials Scavenger-Gunner | -8/Materials Scavenger-Gunner | -7/Factory Skirmisher | -6/Factory Scavenger-Skirmisher | -6/Waste Scavenger-Gunner | -6/Factory Scavenger-Gunner | -5/Factory Scavenger-Gunner | -5/Extension Scavenger-Mutant | -5/Cetus Scavenger-Tank | -5/Archives Scavenger-Tank | -5/Hub_04(d) Scavenger-Tank | -4/Factory Scavenger-Mutant | -4/Armory Resources | -11 -10 -9 -8 -7 -6 -6 -6 -5 -5 -5 -5 -5 -4 -4 ----------- Run | Scr Mat Mat Mat Fac Fac Was Fac Fac Ext Cet Arc Hub Fac Arm Matter Collected 8467 | 239 89 895 687 1686 . 368 814 564 1463 248 248 638 524 4 Remotely . | . . . . . . . . . . . . . . . Salvage Created 12455 | . 347 1214 1141 2108 . 202 1072 1389 1922 253 728 1263 816 . Parts 678 | . 27 90 62 126 . 7 40 104 85 12 35 64 26 . Haulers Intercepted 12 | . 2 3 3 1 . . 2 . 1 . . . . . Recyclers Shooed 4 | . 1 1 . 1 . . . . 1 . . . . . Parts Field Recycled . | . . . . . . . . . . . . . . . Retrieved Matter . | . . . . . . . . . . . . . . . Parts Self-Destructed . | . . . . . . . . . . . . . . . Prevented . | . . . . . . . . . . . . . . . Kills | -11 -10 -9 -8 -7 -6 -6 -6 -5 -5 -5 -5 -5 -4 -4 ------- Run | Scr Mat Mat Mat Fac Fac Was Fac Fac Ext Cet Arc Hub Fac Arm Combat Hostiles Destroyed 203 | . 12 27 21 36 . . 16 21 22 5 4 19 20 . Guns 143 | . 9 27 21 34 . . 9 6 9 3 2 15 8 . Cannons 29 | . . . . . . . 5 10 8 1 2 3 . . AOE 25 | . 3 . . 2 . . 2 5 1 1 . 1 10 . Classes Destroyed 18 | . 4 5 1 5 . 1 1 1 . . . . . . Worker 15 | . . 2 1 8 . . . 3 . . . 1 . . Builder 14 | . 1 1 1 3 . . . 5 3 . . . . . Tunneler 2 | . . . . 2 . . . . . . . . . . Hauler 12 | . 2 3 3 1 . . 2 . 1 . . . . . Recycler 2 | . . . . 1 . . . . 1 . . . . . Mechanic 1 | . . . . . . . . 1 . . . . . . Operator 12 | . . 1 . . . . 1 . 1 . 9 . . . Watcher 11 | . . 4 1 1 . . 1 2 2 . . . . . Swarmer 38 | . 9 10 3 9 . . . . . 2 . . 5 . Grunt 89 | . 3 12 14 15 . . 10 6 12 1 . 13 3 . Brawler 4 | . . 1 . 2 . . . . 1 . . . . . Duelist 3 | . . . . 2 . . . 1 . . . . . . Sentry 32 | . . 4 3 2 . . 1 2 6 . 4 1 9 . Specialist 6 | . . . . . . . 2 . . . . 4 . . Hunter 12 | . . . 1 1 . . 1 7 1 . . . 1 . Programmer 15 | . . . . 4 . . 1 5 2 1 . . 2 . Heavy 3 | . . . . 1 . . 1 . . . . 1 . . Cetus Guard 1 | . . . . . . . . . . 1 . . . . Martyr 3 | . . . . . . 3 . . . . . . . . Best Kill Streak 8 | . 6 7 7 6 . . 4 8 4 3 5 8 6 . Combat Bots Only 8 | . 6 7 5 4 . . 4 4 4 3 1 8 6 . Max Kills in Single Turn 5 | . 2 1 2 2 . 1 2 5 2 1 2 1 5 . Gunslinging 1 | . . . 1 1 . . 1 . . . . . . . Exploded 5 | . 2 . . 2 . . 2 2 1 1 . 1 5 . Melee . | . . . . . . . . . . . . . . . Uniques/NPCs Destroyed . | . . . . . . . . . . . . . . . Combat | -11 -10 -9 -8 -7 -6 -6 -6 -5 -5 -5 -5 -5 -4 -4 -------- Run | Scr Mat Mat Mat Fac Fac Was Fac Fac Ext Cet Arc Hub Fac Arm Damage Taken 18138 | . 480 584 641 2780 . . 1733 2086 3016 450 396 2813 2106 1053 Core 2459 | . 82 44 117 301 . . 66 158 386 . 30 108 199 968 Absorbed by Shields 951 | . . . 128 172 . . . . 170 . . . 481 . Reduced by Siege Mode 51 | . . . . . . . . 45 . . 6 . . . Core Remaining (%) 73 | 100 67 89 78 57 . . 92 . . . . 31 . . Volleys Fired 598 | . 44 77 54 90 . 8 47 41 79 23 29 61 43 2 Largest 4 | . 2 3 4 4 . 4 4 3 4 4 4 4 4 1 Hottest 285 | . 40 69 92 112 . 107 126 126 285 276 197 282 270 81 Shots Fired 1806 | . 85 223 214 349 . 32 120 105 255 26 98 190 107 2 Gun 1566 | . 80 223 214 348 . 32 83 68 165 8 88 160 95 2 Cannon 206 | . . . . . . . 28 30 87 14 10 30 7 . Launcher 34 | . 5 . . 1 . . 9 7 3 4 . . 5 . Special . | . . . . . . . . . . . . . . . Kinetic 1512 | . 80 223 214 348 . 32 110 98 165 7 74 105 56 . Thermal 138 | . . . . . . . . . 23 1 14 69 29 2 Explosive 10 | . 5 . . . . . . . . . . . 5 . Electromagnetic 146 | . . . . 1 . . 10 7 67 18 10 16 17 . Robot Hit Streak 31 | . 8 12 31 26 . 23 13 15 22 6 14 14 10 3 Robot Miss Streak 11 | . 3 10 3 5 . 1 4 4 4 2 2 3 11 . Penetration Max 1 | . . . . 1 . . . 1 1 . 1 . . . Secondary Targets 24 | . 1 3 4 8 . . 2 . 1 . . 4 1 . Max Gunslinging Chain 1 | . 1 1 1 1 . . 1 . 1 . . 1 1 . Shots Hit Robots 1137 | . 54 133 142 219 . 25 78 76 160 14 62 106 66 2 Core Hits 571 | . 26 54 57 90 . 13 39 51 66 16 27 43 88 1 Critical Kills 18 | . 1 . . 1 . 1 . 1 3 1 4 3 3 . Critical Parts Destroyed 14 | . . . 1 3 . . 1 2 2 . 4 . 1 . Critical Strikes 48 | . 1 . 1 4 . 1 1 6 11 4 9 3 7 . Meltdown 1 | . . . . . . . . . 1 . . . . . Destroy 37 | . 1 . 1 4 . 1 1 4 6 1 9 3 6 . Blast 2 | . . . . . . . . 2 . . . . . . Corrupt 8 | . . . . . . . . . 4 3 . . 1 . Melee Attacks 30 | . 12 10 . . . . 2 6 . . . . . . Impact 8 | . . . . . . . 2 6 . . . . . . Slashing 22 | . 12 10 . . . . . . . . . . . . Piercing . | . . . . . . . . . . . . . . . Sneak Attacks 1 | . 1 . . . . . . . . . . . . . Combat Hostiles . | . . . . . . . . . . . . . . . Follow-up Attacks . | . . . . . . . . . . . . . . . Damage Inflicted 29202 | . 668 1828 2187 4792 . 578 2604 3153 4663 640 1726 3006 3296 61 Guns 20313 | . 422 1812 2187 4673 . 578 1301 1042 2654 127 1635 2282 1550 50 Cannons 4992 | . . . . . . . 921 1317 1795 200 91 550 118 . Explosions 3676 | . 180 . . 43 . . 382 753 203 313 . 174 1628 . Melee 50 | . 50 . . . . . . . . . . . . . Ramming 171 | . 16 16 . 76 . . . 41 11 . . . . 11 Kinetic 20714 | . 422 1812 2187 4673 . 578 2202 2359 2654 127 1351 1549 800 . Thermal 3130 | . . . . . . . 61 246 532 124 284 1276 557 50 Explosive 1808 | . 180 . . . . . . . . . . . 1628 . Electromagnetic 3329 | . . . . 43 . . 341 507 1466 389 91 181 311 . Impact . | . . . . . . . . . . . . . . . Slashing 50 | . 50 . . . . . . . . . . . . . Piercing . | . . . . . . . . . . . . . . . Highest Corruption 80 | . 5 1 . 9 . . 7 5 29 77 77 80 4 4 Average Corruption 20 | . 3 1 . 8 . . 2 3 21 63 69 58 2 4 Corruption Purged 21 | . . . . . . . . . 1 . 20 . . . Corruption Blocked 8 | . . . . 8 . . . . . . . . . . Effects 355 | . 20 1 . 41 . . 13 18 107 30 42 72 6 5 Message Errors 77 | . 8 . . 9 . . 3 4 26 5 10 7 3 2 Matter Fused 73 | . 4 . . 10 . . 3 5 28 7 3 11 1 1 Heat Flow Errors 27 | . 2 . . 2 . . 1 2 10 2 2 5 1 . Energy Discharges 28 | . 1 . . 6 . . . 2 8 1 4 5 . 1 Parts Rejected 7 | . . . . 3 . . . . 2 1 . 1 . . Data Loss (minor) 37 | . 2 1 . 5 . . 3 2 8 6 4 5 1 . Data Loss (major) 12 | . 2 . . 1 . . 2 1 4 1 1 . . . Misfires 12 | . 1 . . 1 . . 1 1 2 1 2 3 . . Alerts 8 | . . . . 1 . . . 1 3 . . 2 . 1 Misdirections 8 | . . . . . . . . . 4 . . 4 . . Weapon Failures 66 | . . . . 3 . . . . 12 6 16 29 . . Overload Shots 1 | . . . . . . . . . . 1 . . . . Overflow Damage 326 | . 10 . . . . . 117 113 24 17 . 35 10 . Projectiles 281 | . . . . . . . 117 113 24 . . 27 . . Explosions 35 | . . . . . . . . . . 17 . 8 10 . Melee 10 | . 10 . . . . . . . . . . . . . Knockbacks 8 | . . . . . . . 6 2 . . . . . . Impact 1 | . . . . . . . . 1 . . . . . . Kinetic 7 | . . . . . . . 6 1 . . . . . . Secondary . | . . . . . . . . . . . . . . . Self-Inflicted Damage 189 | . 55 . . . . . 18 . . 75 . 36 . 5 Shots 7 | . 2 . . . . . 2 . . 2 . 1 . . Rammed 13 | . 4 2 . 3 . . . 2 . . . . . 2 Targets Rammed 19 | . 4 3 . 5 . . . 3 2 . . . . 2 Kicked 2 | . . . . . . . . . 2 . . . . . Crushed 4 | . . 1 . 2 . . . 1 . . . . . . Highest Temperature 625 | . 279 319 91 403 . 48 236 273 376 230 438 625 198 49 Average Temperature 94 | . 94 76 26 84 . 21 56 59 109 85 152 133 102 32 Received Heat Transfer 3578 | . 54 192 222 603 . . 378 177 668 27 54 852 243 108 Effects 20 | . . 1 . 1 . . . . 4 1 3 10 . . Shutdowns 3 | . . . . . . . . . . . 2 1 . . Energy Bleed 3 | . . . . 1 . . . . . . . 2 . . Interference 9 | . . . . . . . . . 4 1 1 3 . . Damage (minor) 1 | . . 1 . . . . . . . . . . . . Damage (major) 4 | . . . . . . . . . . . . 4 . . Siege Activations 4 | . . . . . . . . 3 . . 1 . . . Total Turns 52 | . . . . . . . . 37 . . 15 . . . Longest Duration 18 | . . . . . . . . 18 . . 15 . . . Robots Corrupted 5 | . . . . . . . . . 4 . . . 1 . Combat Hostiles 4 | . . . . . . . . . 3 . . . 1 . Parts Fried 14 | . . . . . . . 1 5 4 2 . . 2 . Impact Corruptions . | . . . . . . . . . . . . . . . Robots Melted 2 | . . . . . . . . . 1 . . . 1 . Combat Hostiles 2 | . . . . . . . . . 1 . . . 1 . Parts Melted 4 | . . . . . . . . . 1 . . . 3 . Heat Transferred 3442 | . . . . . . . 100 150 513 100 370 1432 703 74 Parts Sabotaged 2 | . . . . . . . . . 2 . . . . . Parts Stolen . | . . . . . . . . . . . . . . . Parts Stripped . | . . . . . . . . . . . . . . . Power Chain Reactions 6 | . . . . 1 . . 1 1 1 1 . 1 . . Missiles Intercepted . | . . . . . . . . . . . . . . . Alert | -11 -10 -9 -8 -7 -6 -6 -6 -5 -5 -5 -5 -5 -4 -4 ------- Run | Scr Mat Mat Mat Fac Fac Was Fac Fac Ext Cet Arc Hub Fac Arm Peak Influence 1261 | . 247 625 545 828 357 124 1217 1029 1261 1034 576 612 445 288 Initial 658 | . . 75 263 226 345 124 . 570 504 658 333 131 299 163 Average 484 | . 129 301 405 486 349 65 852 761 723 864 483 372 272 174 Maximum Alert Level 4 | . 1 2 2 3 1 . 4 3 4 3 2 2 2 1 Low Security (%) 19 | 100 70 28 . . . 100 8 . . . . 10 29 77 Level 1 25 | . 29 46 43 41 100 . . . . . 31 43 59 22 Level 2 32 | . . 24 56 34 . . 20 41 66 12 68 46 10 . Level 3 18 | . . . . 24 . . 41 58 22 87 . . . . Level 4 4 | . . . . . . . 29 . 11 . . . . . Level 5 . | . . . . . . . . . . . . . . . High Security . | . . . . . . . . . . . . . . . Max Security . | . . . . . . . . . . . . . . . Squads Dispatched 71 | . 3 6 6 18 . . 12 6 6 . . 8 5 1 Investigation 20 | . 1 3 2 5 . . 4 1 1 . . 3 . . Extermination 7 | . . . . 4 . . 1 1 . . . . 1 . Reinforcement 30 | . 2 3 1 5 . . 7 3 3 . . 4 1 1 Assault 4 | . . . . . . . . 1 2 . . 1 . . Garrison 10 | . . . 3 4 . . . . . . . . 3 . Intercept . | . . . . . . . . . . . . . . . Searches Triggered . | . . . . . . . . . . . . . . . Construction Impeded 2 | . . . . . . . 1 1 . . . . . . Haulers Reinforced 4 | . . . . 2 . . 2 . . . . . . . Active Scanning Responses . | . . . . . . . . . . . . . . . Cargo Convoy Interrupts 1 | . . . . 1 . . . . . . . . . . Stealth | -11 -10 -9 -8 -7 -6 -6 -6 -5 -5 -5 -5 -5 -4 -4 --------- Run | Scr Mat Mat Mat Fac Fac Was Fac Fac Ext Cet Arc Hub Fac Arm Distress Signals 11 | . . 1 1 . . . 3 2 . 1 . 1 1 1 Communications Jammed 2 | . . . . . . . 2 . . . . . . . Distress Signals 2 | . . . . . . . 2 . . . . . . . Times Spotted 392 | . 24 39 24 43 . 1 37 35 73 17 16 30 26 27 Peak Tracking Total 23 | . 6 6 4 4 . 1 5 5 8 5 1 7 6 23 Tactical Retreats 17 | . 1 1 . 1 . . . 3 4 . . 3 1 3 Traps | -11 -10 -9 -8 -7 -6 -6 -6 -5 -5 -5 -5 -5 -4 -4 ------- Run | Scr Mat Mat Mat Fac Fac Was Fac Fac Ext Cet Arc Hub Fac Arm Traps Triggered 12 | . 3 3 1 1 1 . . 1 1 . . 1 . . Indirectly . | . . . . . . . . . . . . . . . Trap Hack Attempts . | . . . . . . . . . . . . . . . Triggered . | . . . . . . . . . . . . . . . Disarmed . | . . . . . . . . . . . . . . . Reprogrammed . | . . . . . . . . . . . . . . . Reused . | . . . . . . . . . . . . . . . Traps Extracted . | . . . . . . . . . . . . . . . Installed . | . . . . . . . . . . . . . . . Triggered 1 | . . . . 1 . . . . . . . . . . Machines | -11 -10 -9 -8 -7 -6 -6 -6 -5 -5 -5 -5 -5 -4 -4 ---------- Run | Scr Mat Mat Mat Fac Fac Was Fac Fac Ext Cet Arc Hub Fac Arm Machines Disabled 29 | . . 1 . 4 . . 2 . 5 4 3 9 1 . Max in Single Turn 2 | . . 1 . 2 . . 1 . 1 1 1 2 1 . Garrison Access 2 | . . . . . . . 1 . . . . . 1 . Machines Sabotaged . | . . . . . . . . . . . . . . . Garrisons Compromised 1 | . . . . 1 . . . . . . . . . . Overloaded Fab Kills . | . . . . . . . . . . . . . . . Hacking | -11 -10 -9 -8 -7 -6 -6 -6 -5 -5 -5 -5 -5 -4 -4 --------- Run | Scr Mat Mat Mat Fac Fac Was Fac Fac Ext Cet Arc Hub Fac Arm Machines Accessed 67 | . 6 10 4 10 1 . 9 5 10 . . 3 8 1 Terminals 51 | . 5 7 3 4 1 . 6 4 10 . . 3 7 1 Fabricators 3 | . . . . 1 . . 2 . . . . . . . Repair Stations . | . . . . . . . . . . . . . . . Recycling Units 8 | . 1 2 1 3 . . . 1 . . . . . . Scanalyzers 1 | . . 1 . . . . . . . . . . . . Garrison Access 4 | . . . . 2 . . 1 . . . . . 1 . Total Hacks 176 | . 16 25 13 20 2 . 19 20 28 . . 9 21 3 Successful 87 | . 8 12 6 8 2 . 10 13 11 . . 2 14 1 Failed 88 | . 7 13 7 12 . . 9 7 17 . . 7 7 2 Catastrophic 16 | . . 1 1 3 . . 3 . 5 . . 2 1 . Database Lockouts 1 | . 1 . . . . . . . . . . . . . Manual 129 | . 17 19 12 13 2 . 13 15 11 2 . 9 15 1 Terminals 142 | . 14 17 10 10 2 . 12 17 28 . . 9 20 3 Fabricators 7 | . . . . 2 . . 5 . . . . . . . Repair Stations . | . . . . . . . . . . . . . . . Recycling Units 16 | . 2 5 3 3 . . . 3 . . . . . . Scanalyzers 3 | . . 3 . . . . . . . . . . . . Garrison Access 8 | . . . . 5 . . 2 . . . . . 1 . Terminal Hacks 33 | . 6 2 1 2 1 . 1 6 8 . . 1 5 . Part Schematic 1 | . 1 . . . . . . . . . . . . . Robot Analysis 7 | . 3 1 . 1 . . . 1 . . . . 1 . Prototype ID Bank 1 | . 1 . . . . . . . . . . . . . Open Door 7 | . . . . . . . . 1 6 . . . . . Branch Access Points 2 | . . . . . . . . 1 . . . . 1 . Terminal Index 9 | . 1 1 1 1 1 . 1 1 . . . 1 1 . Alert Level 2 | . . . . . . . . . 1 . . . 1 . Unreport Threat 2 | . . . . . . . . . 1 . . . 1 . Locate Traps 1 | . . . . . . . . 1 . . . . . . Zone Layout 1 | . . . . . . . . 1 . . . . . . Fabricator Hacks 4 | . . . . . . . 4 . . . . . . . Network Status 1 | . . . . . . . 1 . . . . . . . Load Schematic 1 | . . . . . . . 1 . . . . . . . Build 2 | . . . . . . . 2 . . . . . . . Repair Station Hacks . | . . . . . . . . . . . . . . . Recycling Unit Hacks 4 | . 1 1 1 . . . . 1 . . . . . . Retrieve Components 4 | . 1 1 1 . . . . 1 . . . . . . Scanalyzer 3 | . . 3 . . . . . . . . . . . . Insert Component 1 | . . 1 . . . . . . . . . . . . Analyze 2 | . . 2 . . . . . . . . . . . . Garrison Access Hacks 1 | . . . . . . . . . . . . . 1 . Seal Access 1 | . . . . . . . . . . . . . 1 . Unauthorized Hacks 42 | . 1 6 4 6 1 . 5 6 3 . . 1 8 1 Terminals 34 | . . 4 4 3 1 . 4 5 3 . . 1 8 1 Track 1 | . . . . . . . . 1 . . . . . . Assimilate 4 | . . 2 1 . . . . . . . . . 1 . Botnet 20 | . . . 2 2 . . 4 2 3 . . . 6 1 Disrupt 1 | . . . . . . . . 1 . . . . . . Operators 8 | . . 2 1 1 1 . . 1 . . . 1 1 . Fabricators . | . . . . . . . . . . . . . . . Repair Stations . | . . . . . . . . . . . . . . . Recycling Units 7 | . 1 2 . 3 . . . 1 . . . . . . Tunnel 7 | . 1 2 . 3 . . . 1 . . . . . . Scanalyzers . | . . . . . . . . . . . . . . . Garrison Access 1 | . . . . . . . 1 . . . . . . . Jam 1 | . . . . . . . 1 . . . . . . . Data Cores Recovered 2 | . . . . . . . 1 . 1 . . . . . Used . | . . . . . . . . . . . . . . . Hacking Detections 55 | . 5 9 4 7 1 . 9 4 5 . . 3 7 1 Full Trace Events 7 | . . . 1 2 . . 1 . 1 . . 2 . . Feedback Events 1 | . . . . . . . . . . . . 1 . . Corruption 1 | . . . . . . . . . . . . 1 . . Feedback Blocked . | . . . . . . . . . . . . . . . Robot Schematics Acquired . | . . . . . . . . . . . . . . . Robots Built . | . . . . . . . . . . . . . . . Authchips . | . . . . . . . . . . . . . . . Time . | . . . . . . . . . . . . . . . Total Robot Build Rating . | . . . . . . . . . . . . . . . Part Schematics Acquired 2 | . 1 1 . . . . . . . . . . . . Parts Built 2 | . . . . . . . 2 . . . . . . . Authchips . | . . . . . . . . . . . . . . . Time 104 | . . . . . . . 104 . . . . . . . Total Part Build Rating 7 | . . . . . . . 7 . . . . . . . Parts Repaired . | . . . . . . . . . . . . . . . Time . | . . . . . . . . . . . . . . . Parts Recycled . | . . . . . . . . . . . . . . . Recycled Matter . | . . . . . . . . . . . . . . . Retrieved Matter . | . . . . . . . . . . . . . . . Retrieved Components 14 | . 10 . 1 . . . . 3 . . . . . . Parts Scanalyzed 1 | . . 1 . . . . . . . . . . . . Part Schematics Acquired 1 | . . 1 . . . . . . . . . . . . Parts Damaged . | . . . . . . . . . . . . . . . Bothacking | -11 -10 -9 -8 -7 -6 -6 -6 -5 -5 -5 -5 -5 -4 -4 ------------ Run | Scr Mat Mat Mat Fac Fac Was Fac Fac Ext Cet Arc Hub Fac Arm Used RIF Installer . | . . . . . . . . . . . . . . . Robots Hacked . | . . . . . . . . . . . . . . . Non-combat . | . . . . . . . . . . . . . . . Combat . | . . . . . . . . . . . . . . . Robot Hacks Applied . | . . . . . . . . . . . . . . . Relay Couplers Released 3 | . . . . . . . . 3 . . . . . . Programmers 3 | . . . . . . . . 3 . . . . . . Fabnet Peak Effective % . | . . . . . . . . . . . . . . . Robots Rewired 9 | . . . . . . . . 1 8 . . . . . Allies Hacked 3 | . . . . . . . 3 . . . . . . . Hacks Repelled . | . . . . . . . . . . . . . . . Allies | -11 -10 -9 -8 -7 -6 -6 -6 -5 -5 -5 -5 -5 -4 -4 -------- Run | Scr Mat Mat Mat Fac Fac Was Fac Fac Ext Cet Arc Hub Fac Arm Total Allies 38 | . . . . . . 20 . 1 16 . . . 1 . Largest Group 20 | . . . . . . 20 17 5 11 3 1 . 1 1 Highest-Rated Group 743 | . . . . . . 743 593 147 476 209 144 . 10 9 Highest-Rated Ally 159 | . . . . . . 50 46 41 159 150 144 . 10 9 Total Orders 2 | . . . . . . . . . . . . . 2 . STAY 1 | . . . . . . . . . . . . . 1 . FOLLOW 1 | . . . . . . . . . . . . . 1 . Ally Attacks 374 | . . . . . . 10 158 15 157 34 . . . . Total Damage 9609 | . . . . . . 413 3417 715 4106 958 . . . . Kills 71 | . . . . . . 1 26 3 31 10 . . . . Allies Corrupted 1 | . . . . . . . . . 1 . . . . . Allies Melted . | . . . . . . . . . . . . . . . Intel | -11 -10 -9 -8 -7 -6 -6 -6 -5 -5 -5 -5 -5 -4 -4 ------- Run | Scr Mat Mat Mat Fac Fac Was Fac Fac Ext Cet Arc Hub Fac Arm Robot Analysis Total 7 | . 3 1 . 1 . . . 1 . . . . 1 . Derelict Logs Recovered . | . . . . . . . . . . . . . . . Drone Launches . | . . . . . . . . . . . . . . . Drone Recoveries . | . . . . . . . . . . . . . . . Exploration | -11 -10 -9 -8 -7 -6 -6 -6 -5 -5 -5 -5 -5 -4 -4 ------------- Run | Scr Mat Mat Mat Fac Fac Was Fac Fac Ext Cet Arc Hub Fac Arm Turns Passed 14756 | 67 1290 1476 1068 2116 92 806 1518 1103 2185 499 494 656 1219 167 Spaces Moved 6622 | 39 498 655 510 1046 67 445 747 467 880 140 156 246 565 161 Core 125 | 4 . . . . . . . . . . . . . 121 Treads 5384 | 35 498 655 510 1039 . 288 610 339 263 140 156 246 565 40 Legs 882 | . . . . . . . 137 128 617 . . . . . Wheels 231 | . . . . 7 67 157 . . . . . . . . Hover . | . . . . . . . . . . . . . . . Flight . | . . . . . . . . . . . . . . . Fastest Speed 50 | 50 160 160 160 130 130 130 160 160 160 160 160 160 160 50 Average Speed 173 | 148 217 170 161 164 130 155 168 183 190 180 160 160 184 97 Slowest Speed 570 | 160 240 240 240 240 130 240 570 240 330 240 160 160 240 240 Overloaded Moves . | . . . . . . . . . . . . . . . Propulsion Burnouts . | . . . . . . . . . . . . . . . Robots Hopped . | . . . . . . . . . . . . . . . Cave-ins Triggered 1 | . . . . . . . . . 1 . . . . . Exploration Rate (%) 42 | 5 77 66 45 37 3 93 23 10 86 56 74 30 20 19 Regions Visited 14 Branch Regions 5 Pre-discovered Areas 7 | . 1 2 . 3 . . . 1 . . . . . . Known Exits Taken 2 | . . . . . . . . 1 . . . . 1 . Unknown Exits Taken 10 | 1 1 1 1 1 . . 1 . 1 1 1 1 . . Scrap Searched . | . . . . . . . . . . . . . . . Spaces Dug 41 | . 5 7 . . . . 4 4 . . . 11 10 . Terrain Destroyed 321 | . 33 7 . 13 . . 15 25 39 18 24 73 74 . Melee 18 | . 5 7 . . . . 2 4 . . . . . . Projectile 168 | . . . . 7 . . 13 13 29 1 24 58 23 . AOE 132 | . 28 . . 4 . . . 8 9 17 . 15 51 . Terrain Rammed . | . . . . . . . . . . . . . . . Walls Destroyed . | . . . . . . . . . . . . . . . Machines Disabled . | . . . . . . . . . . . . . . . Actions | -11 -10 -9 -8 -7 -6 -6 -6 -5 -5 -5 -5 -5 -4 -4 --------- Run | Scr Mat Mat Mat Fac Fac Was Fac Fac Ext Cet Arc Hub Fac Arm Total 8579 | 45 606 853 631 1223 72 541 904 611 1211 362 332 366 651 171 Wait 658 | . 19 70 12 20 . 55 49 41 64 160 128 28 12 . Move 6608 | 38 497 654 509 1045 67 444 746 466 878 139 155 245 564 161 Hop . | . . . . . . . . . . . . . . . Pick Up 159 | 1 17 12 17 17 . 11 13 14 15 10 6 8 14 4 Fast Attach 99 | 6 2 8 7 12 . 3 17 6 22 5 4 3 4 . Attach 97 | . . 3 5 17 4 5 6 9 17 6 3 13 9 . Detach 19 | . . . . 2 . . 4 1 5 6 . . 1 . Swap 53 | . 7 7 5 3 1 2 5 4 6 3 1 6 3 . Drop 120 | . 4 9 22 12 . 13 15 11 13 10 6 2 1 2 Fire 598 | . 44 77 54 90 . 8 47 41 79 23 29 61 43 2 Melee 30 | . 12 10 . . . . 2 6 . . . . . . Ram 2 | . . . . . . . . . . . . . . 2 Kick 2 | . . . . . . . . . 2 . . . . . Crush 15 | . 4 3 . 5 . . . 3 . . . . . . Escape Stasis 6 | . . . . . . . . . 6 . . . . . Rewire 113 | . . . . . . . . 9 104 . . . . . Trap . | . . . . . . . . . . . . . . . Miscellaneous . | . . . . . . . . . . . . . . . Route ------- -11/Scrapyard -10/Materials (discovered 2 exits: *Mat x2) -9/Materials (discovered 4 exits: *Mat x2 / [*Min] / [*Sto]) -8/Materials -7/Factory -6/Factory -6/Waste -6/Factory -5/Factory (discovered 6 exits: *Fac x2 / Upp x2 / *Ext x2) -5/Extension (discovered 2 exits: *Fac / *Cet) -5/Cetus -5/Archives (discovered 2 exits: *Fac / *Hub) -5/Hub_04(d) -4/Factory (discovered 4 exits: [*Res] / Upp x2 / *Arm) -4/Armory History --------- Turn | Location | Event 3 | -11/Scrapyard | Discovered new exit (range 15) 68 | -11/Scrapyard | Entered Materials 204 | -10/Materials | Discovered new exit (range 4) 305 | -10/Materials | Build established: Mutant 905 | -10/Materials | Central database locked down 1340 | -10/Materials | Discovered new exit (range 5) 1358 | -10/Materials | Entered another Materials area 1358 | -9/Materials | Evolved 2 slots: Propulsion x1, Weapon x1 1717 | -9/Materials | Destroyed 7 combat bots 1864 | -9/Materials | Discovered new exit (range 16) 2171 | -9/Materials | Discovered new exit (range 13) 2309 | -9/Materials | Discovered new exit (range 15) 2584 | -9/Materials | Build established: Scavenger-Tank 2805 | -9/Materials | Discovered new exit (range 15) 2834 | -9/Materials | Entered another Materials area 2834 | -8/Materials | Evolved 2 slots: Utility x1, Weapon x1 2981 | -8/Materials | Garrison activated, responded to threat 3167 | -8/Materials | Build established: Scavenger-Gunner 3834 | -8/Materials | Build established: Gunner 3883 | -8/Materials | Discovered new exit (range 4) 3902 | -8/Materials | Entered Factory 3902 | -7/Factory | Evolved 2 slots: Propulsion x1, Utility x1 4144 | -7/Factory | Build established: Scavenger-Gunner 4724 | -7/Factory | Garrison activated, responded to threat 4953 | -7/Factory | Lost 3 parts (1n2u) 5248 | -7/Factory | Build established: Scavenger-Tank 5471 | -7/Factory | Cargo convoy interrupted 5629 | -7/Factory | Build established: Scavenger-Gunner 5972 | -7/Factory | Discovered new exit (range 4) 5999 | -7/Factory | Garrison activated, responded to threat 6018 | -7/Factory | Entered another Factory area 6018 | -6/Factory | Evolved 2 slots: Propulsion x1, Utility x1 6049 | -6/Factory | Lost 9 parts (5n1u3w) 6110 | -6/Factory | Sucked down chute 6110 | -6/Factory | Entered Waste 6111 | -6/Waste | Joined by Warlord forces that had cleared the area 6272 | -6/Waste | Build established: Skirmisher 6489 | -6/Waste | Discovered new exit (range 15) 6550 | -6/Waste | A Compactor rumbled back to life 6550 | -6/Waste | Spotted C-40 Crusher 6552 | -6/Waste | Allies destroyed C-40 Crusher 6616 | -6/Waste | Build established: Scavenger-Skirmisher 6787 | -6/Waste | Found Damper Plating 6809 | -6/Waste | Found Damper Plating 6907 | -6/Waste | Identified exit to Factory 6916 | -6/Waste | Entered Factory 6916 | -6/Factory | Accompanied by 17 allies 7067 | -6/Factory | Fabricated Huge Storage Unit (x1) 7283 | -6/Factory | Fabricated Tesla Rifle (x1) 7778 | -6/Factory | Build established: Scavenger-Gunner 7968 | -6/Factory | Discovered new exit (range 15) 8156 | -6/Factory | Lost 4 parts (2n1u1w) 8434 | -6/Factory | Entered another Factory area 8434 | -5/Factory | Accompanied by 4 allies 8434 | -5/Factory | Evolved 2 slots: Propulsion x1, Utility x1 8695 | -5/Factory | Identified exit to Upper Caves 8695 | -5/Factory | Identified exit to Extension 8941 | -5/Factory | Discovered new exit (range 13) 9215 | -5/Factory | Discovered new exit (range 13) 9334 | -5/Factory | First assault squad dispatched 9537 | -5/Factory | Entered Extension 9695 | -5/Extension | Rescued a captive Derelict 9832 | -5/Extension | Lost 4 parts (2n1u1w) 9837 | -5/Extension | First assault squad dispatched 9863 | -5/Extension | System corruption reached 10% 10023 | -5/Extension | Lost 3 parts (1p2w) 10200 | -5/Extension | Lost 6 parts (4n2w) 10214 | -5/Extension | Crushed by falling debris 10215 | -5/Extension | Core integrity fell below 50% 10261 | -5/Extension | Rescued A7 10852 | -5/Extension | Spotted B-75 Beast 10873 | -5/Extension | Allies destroyed B-75 Beast 10885 | -5/Extension | Spotted B-75 Beast 10900 | -5/Extension | Allies destroyed B-75 Beast 10937 | -5/Extension | Disrupted transfer network 11104 | -5/Extension | Rescued a captive Derelict 11125 | -5/Extension | Rescued a captive Derelict 11128 | -5/Extension | Rescued a captive Derelict 11145 | -5/Extension | Rescued a captive Derelict 11151 | -5/Extension | Rescued a captive Derelict 11356 | -5/Extension | Rescued a captive Derelict 11357 | -5/Extension | Rescued a captive Derelict 11698 | -5/Extension | Discovered new exit (range 10) 11700 | -5/Extension | Discovered new exit (range 6) 11712 | -5/Extension | Build established: Hacker-Gunner 11722 | -5/Extension | Disrupted transfer network 11722 | -5/Extension | Entered Cetus 11722 | -5/Cetus | Accompanied by 3 allies (A7) 11727 | -5/Cetus | Acquired a Cetus Manufacturing Module code from A7 11755 | -5/Cetus | Spotted Cetus Guard 11755 | -5/Cetus | Spotted Cetus Guard 11759 | -5/Cetus | Destroyed Cetus Guard 11760 | -5/Cetus | Spotted Cetus Guard 11763 | -5/Cetus | Allies destroyed Cetus Guard 11763 | -5/Cetus | Spotted Cetus Guard 11775 | -5/Cetus | Allies destroyed Cetus Guard 11785 | -5/Cetus | Allies destroyed Cetus Guard 11809 | -5/Cetus | System corruption reached 30% 11814 | -5/Cetus | Cetus Manufacturing Module disabled 11937 | -5/Cetus | Failed to start Cetus Manufacturing Module 11953 | -5/Cetus | Escorted A7 to Cetus Mainframe 12197 | -5/Cetus | Discovered new exit (range 16) 12221 | -5/Cetus | Entered Archives 12221 | -5/Archives | Accompanied by 1 ally (A7) 12226 | -5/Archives | Received a hacking code to weaken MAIN.C 12420 | -5/Archives | Discovered new exit (range 14) 12433 | -5/Archives | Discovered new exit (range 16) 12522 | -5/Archives | Build established: Scavenger-Tank 12715 | -5/Archives | Entered Hub_04(d) 13102 | -5/Hub_04(d) | Found Prototype Launcher 13242 | -5/Hub_04(d) | Destroyed 8 combat bots 13257 | -5/Hub_04(d) | Lost 5 parts (1n4w) 13315 | -5/Hub_04(d) | First assault squad dispatched 13335 | -5/Hub_04(d) | Discovered new exit (range 7) 13371 | -5/Hub_04(d) | Entered Factory 13371 | -4/Factory | Evolved 2 slots: Power x1, Propulsion x1 13548 | -4/Factory | Identified exit to Upper Caves 13548 | -4/Factory | Identified exit to Armory 13904 | -4/Factory | Identified Scatter Rocket Array 13995 | -4/Factory | Discovered new exit (range 21) 14035 | -4/Factory | Garrison activated, responded to threat 14132 | -4/Factory | Lost 6 parts (1p3n2w) 14484 | -4/Factory | Lost 5 parts (1p1n2u1w) 14508 | -4/Factory | Build established: Scavenger-Mutant 14590 | -4/Factory | Entered Armory 14590 | -4/Armory | Accompanied by 1 ally 14610 | -4/Armory | Found Fusion Bomb Launcher 14691 | -4/Armory | Released all parts (10) 14722 | -4/Armory | Lost 3 parts (1u2w) 14740 | -4/Armory | Core integrity fell below 50% 14743 | -4/Armory | Spotted B-86 Titan 14753 | -4/Armory | Core integrity fell below 20% 14757 | -4/Armory | Destroyed by Y-72 Warden with Railgun Last Messages --------------- 14711_ E-15 Imp destroyed. 14711_ Knocked back. 14715_ ALERT: Suspicious intruders detected, dispatching Cutter reinforcements to area. 14730_ Dropped Adv. Terrain Scanner. 14730_ Acquired Quantum Reactor. 14733_ System corrupted: IFF burst signal emitted. 14745_ Transfer Shaft disabled. 14750_ Slug penetrates Wall. 14750_ Slug penetrates Transfer Shaft. 14750_ Transfer Shaft disabled. 14750_ Slug penetrates Wall. 14753_ Penetrated by Slug. 14755_ Slug penetrates Wall. 14756_ Slammed into Y-72 Warden. 14756_ Penetrated by Slug. 14756_ Slug penetrates Wall. 14756_ Penetrated by Slug. 14757_ Slammed into Y-72 Warden. 14757_ Penetrated by Slug. Map ----- +----------------------------------------------------+ | ?????????????????????????????????????????????????? | | ?????????????????????????????????????????????????? | | ?????????????????????????????????????????????????? | | ?????????????????????????????????????????????????? | | ?????????????????????????????????????????????????? | | ?????????????????????????????????????????????????? | | ?????????????????????????????????????????????????? | | ?????????????????????????????????????????????????? | | ?????????????????????????????????????????????????? | | ?????????????????????????????????????????????????? | | ?????????????????????????????????????????????????? | | ?????????????????????????????????????????????????? | | ?????????????????????????????????????????????????? | | ?????????????????????????????????????????????????? | | ?????????????????????????????????????????????????? | | ?????????????????????????????????????????????????? | | ?????????????????????????????????????????????????? | | ?????????????????????????????????????????????????? | | ?????????????????????????????????????????????????? | | ?????????????????????????????????????????????????? | | ?????????????????????????????????????????????????? | | ??????????????????????##++##?????????????????????? | | ??????????????????????# ??????????????????????? | | ??????????????????????#] ??????????????????????? | | ???????????????????????#YY#?????????????????????? | | ???????????????????????# @#????????????????????? | | ???????????????????????#cc#????????????????????? | | ???????????????????????# #????????????????????? | | ??????????????????????## ##???####????????????? | | ??????????????????????# #???# #????????????# | | ??????????????????????# ###"" ############## | | ??????????????????????# | | ??????????????????????# % | | ??????????????????????# " | | ??????????????????????# " | | ??????????????????????# h | | ??????????????????????# " | | ??????????????????????# "" """ """ "" " | | ??????????????????????#h """ """ """ """ | | ????????????????????? """ """ """ """ | | ???????????????H???? | | ???????????????????#### | | ??????????????????????##+####### ###+######## | | ???????????????????????????????#######???????????? | | ?????????????????????????????????????????????????? | | ????????????????????????????????????????????????? | | ????????????????????????????????????????????????# | | ????????????????????????????????????????????????# | | ????????????????????????????????????????????????# | | ????????????????????????????????????????????????## | +----------------------------------------------------+ Best States ------------- Heat Dissipation 43 Coolant Potential 80 Energy Generation 45 Energy Capacity 600 Matter Stores 300 Matter Capacity 350 Sight Range 22 Robot Scan Range 15 Terrain Scan Density 10 Jamming Range 14 EM Shielding 2 Armor Coverage 3200 Resistance: EM 90 Evasion (%) 50 Targeting Accuracy 16 Target Analysis 6 Recoil Reduction 7 Kinecelleration 30 Offensive Hacking 12 Defensive Hacking 12 Item Schematics ----------------- Huge Storage Unit | -10/Materials | Hacked Structural Scanner | -9/Materials | Scanalyzed Robot Schematics ------------------ None Fabricated ------------ Huge Storage Unit | x1 | -6/Factory Tesla Rifle | x1 | -6/Factory | Preloaded Alien Tech Used ----------------- None Achievements -------------- None Challenges ------------ None Game ------ Seed MiniSwordCorpse Manual? 0 Play Time 01:33:06 Cumulative 233.5 hours Start 2022.04.03 @ 04:26:46 End 2022.04.04 @ 08:12:58 Sessions 3 Manual Loads 0 Difficulty Rogue Special Mode None Game No. 332 Rogue 310 Adventurer 4 Explorer 18 Win Type - Total 10 Types 8/0/0/2/0/0/0/0/0 Lore% 70 Gallery% 88 Achievement% 71 Wizard Run 0 Options --------- ASCII 0 Keyboard 1 Movement Numpad Keybinds 0 Fullscreen 1 Font 18/SmallcapsGlow Map View 76x50 Tactical HUD 1 Map Filters NONE Filters NONE Steam 1 RUN: 2174f73e-6ec6-490e-a0fc-4fa6bf0e2e18